Cogmind - Beta 12 X1 @@@ ROGUE MODE // 2022.07.10 @ 12:36:15 Player: Cyurio Result: Destroyed by S-27 Virus with Autogun Performance ------------- Evolutions (6) 3000 Regions Visited (20) 4000 Robots Destroyed (131) 655 Value Destroyed (4892) 4892 Prototype IDs (29) 580 Alien Tech Used (0) 0 Bonus (1812) 1812 TOTAL SCORE: 14939 Bonus ------- High Alert Combat Kills 100 Follower Combat Kills 1482 Aligned with FarCom 300 Friendly Fire -70 Cogmind --------- Core Integrity 0/1150 Matter 249/300 Energy 325/325 System Corruption 23% Temperature Cool (0) Movement Walking (190) Ox1 Location -4/Upper Caves Parts ------- > --- POWER (1) -------- Antimatter Reactor > --- PROPULSION (4) --- Flexi-carbon Leg Myomer Leg > --- UTILITY (10) ----- Advanced Heat Sink Large Storage Unit Advanced Signal Interpreter Advanced Salvage Targeting Computer Improved Melee Analysis Suite Component Analysis Suite > --- WEAPON (4) ------- Autogun Autogun Hypervelocity Mass Driver Phasing Sabre > --- INVENTORY (15) --- Light Nuclear Core Micro Fission Core Quantum Reactor Spiked Medium Treads Advanced Hardlight Generator Advanced Shield Generator Dispersion Rifle Autogun Makeshift Sword Peak State ------------ > --- POWER ------------ Neutrino Core > --- PROPULSION ------- Centrium Heavy Treads Centrium Heavy Treads > --- UTILITY ---------- High-capacity Storage Unit Improved Signal Interpreter Advanced Signal Interpreter Targeting Computer Improved Medium Armor Plating Centrium Medium Armor Plating Centrium Medium Armor Plating Advanced Shield Generator > --- WEAPON ----------- Improved KE Penetrator Improved KE Penetrator Advanced KE Penetrator Bore Cannon > --- INVENTORY -------- Antimatter Reactor Quantum Reactor Quantum Reactor Improved Carbon-fiber Leg Enhanced Flexi-carbon Leg Enhanced Flexi-carbon Leg Large Storage Unit Advanced Weight Redist. System Advanced Terrain Scan Processor Advanced Melee Analysis Suite Advanced ECM Suite Cloak of Protection Advanced Shield Generator System Shield Bore Cannon Bore Cannon Heavy Hammer Scythe Chainsword Great Axe [Rating: 117] Favorites ----------- Power Light Ion Engine Engine Light Ion Engine Power Core Light Nuclear Core Reactor Antimatter Reactor Propulsion Armored Wheel Treads Armored Treads Leg Improved Carbon-fiber Leg Wheel Armored Wheel Utility High-capacity Storage Unit Device Weapon Cycler Storage High-capacity Storage Unit Processor Targeting Computer Protection Centrium Medium Armor Plating Weapon Autogun Energy Gun Tesla Rifle Ballistic Gun Autogun Ballistic Cannon Bore Cannon Special Weapon Enhanced Flamer Impact Weapon Heavy Hammer Slashing Weapon Chainsword Special Melee Weapon Dirty Datajack Build | -11 -10 -10 -9 -9 -9 -8 -8 -7 -7 -7 -7 -6 -6 -6 -6 -6 -6 -5 -4 -4 ------- Run | Scr Mat Min Mat Min Exi Min Mat Fac Low Low Zio Pro Fac Ext Cet Arc Hub Fac Fac Upp Slots Evolved 12 | . . . 2 . . . 2 2 . . . . 2 . . . . 2 2 . Power . | . . . . . . . . . . . . . . . . . . . . . Propulsion 2 | . . . . . . . . . . . . . 1 . . . . 1 . . Utility 8 | . . . . . . . 2 2 . . . . 1 . . . . 1 2 . Weapon 2 | . . . 2 . . . . . . . . . . . . . . . . . Parts Attached 165 | . 16 2 6 . . . 2 17 3 4 4 3 9 30 5 3 1 18 22 20 Power 14 | . 1 . 1 . . . . 1 . 1 . 1 . 4 . 1 . 1 1 2 Engine 4 | . 1 . 1 . . . . . . 1 . . . 1 . . . . . . Core 6 | . . . . . . . . 1 . . . 1 . 3 . 1 . . . . Reactor 4 | . . . . . . . . . . . . . . . . . . 1 1 2 Propulsion 34 | . 8 . . . . . . 2 . . . . 1 9 1 . 1 4 4 4 Treads 9 | . . . . . . . . . . . . . . 4 1 . 1 3 . . Leg 11 | . . . . . . . . . . . . . . 3 . . . 1 4 3 Wheel 14 | . 8 . . . . . . 2 . . . . 1 2 . . . . . 1 Hover . | . . . . . . . . . . . . . . . . . . . . . Flight . | . . . . . . . . . . . . . . . . . . . . . Utility 42 | . 2 . 1 . . . 2 9 1 2 . . 2 3 2 1 . 4 8 5 Device 15 | . 1 . . . . . 1 3 . . . . 2 . . . . 1 5 2 Storage 5 | . 1 . . . . . . 1 . . . . . . . . . . 2 1 Processor 7 | . . . . . . . . 2 . . . . . 1 . . . 1 1 2 Hackware . | . . . . . . . . . . . . . . . . . . . . . Protection 15 | . . . 1 . . . 1 3 1 2 . . . 2 2 1 . 2 . . Artifact . | . . . . . . . . . . . . . . . . . . . . . Weapon 75 | . 5 2 4 . . . . 5 2 1 4 2 6 14 2 1 . 9 9 9 Energy Gun 2 | . . . . . . . . . . . . . . . . . . . 2 . Energy Cannon . | . . . . . . . . . . . . . . . . . . . . . Ballistic Gun 45 | . 3 2 4 . . . . 4 2 . 3 2 2 9 2 1 . 3 3 5 Ballistic Cannon 14 | . 2 . . . . . . . . . . . 2 5 . . . 4 . 1 Launcher . | . . . . . . . . . . . . . . . . . . . . . Special Weapon 1 | . . . . . . . . . . . . . . . . . . . . 1 Impact Weapon 2 | . . . . . . . . 1 . . . . . . . . . . 1 . Slashing Weapon 10 | . . . . . . . . . . . 1 . 2 . . . . 2 3 2 Piercing Weapon . | . . . . . . . . . . . . . . . . . . . . . Special Melee Weapon 1 | . . . . . . . . . . 1 . . . . . . . . . . Unidentified Prototypes 5 | . . . . . . . . . . . . . . . 3 . . 1 1 . Corrupted Parts 5 | . . . . . . . . . . . . . . . 1 . 1 . 2 1 System Corruption 30 | . . . . . . . . . . . . . . . 8 . 6 . 11 5 Parts Lost 91 | . 7 . 2 . . . . 5 1 5 . 3 4 22 . . . 9 23 10 Power 9 | . 1 . 1 . . . . . . . . 1 1 3 . . . 1 1 . Propulsion 20 | . 3 . . . . . . 1 . . . . . 7 . . . 1 5 3 Utility 26 | . . . 1 . . . . 3 1 2 . 1 1 4 . . . 1 10 2 Weapon 36 | . 3 . . . . . . 1 . 3 . 1 2 8 . . . 6 7 5 Highest Loss Streak 14 | . 5 . 1 . . . . 2 1 2 . 3 2 7 . . . 4 14 5 To Critical Strikes 3 | . . . . . . . . . . . . . . 2 . . . . 1 . Average Slot Usage (%) 80 | . 86 100 93 100 100 100 100 96 88 82 75 85 83 71 78 80 85 82 52 62 Engine 3 | . 13 14 10 11 11 11 9 2 . 1 7 1 . . . . . . . . Core 3 | . . . . . . . . 4 7 5 . 5 5 4 6 6 6 4 . . Treads 3 | . . . . . . . . . . . . . . 9 5 6 5 10 4 . Leg 2 | . 2 . . . . . . . . . . . . 3 7 6 6 . 3 10 Wheel 8 | . 24 28 22 22 22 22 18 14 7 7 7 7 13 3 . . . . . 1 Device 5 | . 4 14 2 . . . 9 6 15 9 7 7 12 3 . . . 4 6 5 Storage 10 | . 14 14 11 11 11 11 9 15 15 15 15 15 13 9 6 6 6 5 7 4 Processor 6 | . . . . . . . . 4 7 7 7 7 6 6 13 13 13 15 9 16 Protection 8 | . . . 8 11 11 11 18 15 4 9 15 8 5 4 10 13 20 15 6 . Ballistic Gun 20 | . 21 21 38 44 44 44 36 29 26 21 7 29 21 16 19 20 20 16 5 8 Ballistic Cannon 2 | . 5 7 . . . . . . . . . . 3 6 6 6 6 4 . 2 Naked Turns . | . . . . . . . . . . . . . . . . . . . . . Heaviest Build 107 | 11 49 48 60 60 60 60 68 90 76 80 74 74 74 74 83 100 100 107 104 60 Greatest Support 160 | 20 32 24 24 24 24 24 24 28 28 28 28 28 40 60 80 80 80 160 107 65 Greatest Overweight (x) 6 | . 2 1 2 2 2 2 2 6 2 2 2 2 1 5 1 1 1 1 3 2 Average Overweight (x) 1 | . 1 1 1 2 2 2 2 2 2 2 2 2 1 2 . 1 1 . . . Largest Inventory Capacity 20 | . 20 20 20 20 20 20 20 20 20 20 20 20 20 20 20 20 20 20 20 15 Average Capacity 19 | . 18 20 20 20 20 20 20 20 20 20 20 20 20 20 20 20 20 20 17 14 Most Carried 20 | . 20 20 20 20 20 20 20 20 20 20 20 20 20 20 20 20 20 20 18 9 Average Carried 17 | . 14 20 19 20 19 20 19 18 19 19 19 19 19 17 19 20 19 19 11 7 Final Capacity 20 | 8 20 20 20 20 20 20 20 20 20 20 20 20 20 20 20 20 20 20 15 15 Final Carried 20 | 6 20 20 20 20 20 20 20 20 20 20 19 20 20 18 20 20 20 18 4 9 Class Distribution -------------------- 24% | Scavenger-Tank 20% | Mutant 18% | Tank 14% | Scavenger-Gunner 9% | Scavenger-Mutant 3% | Commander-Skirmisher Dominant Class ---------------- Mutant | -10/Materials Mutant | -10/Mines Tank | -9/Materials Tank | -9/Mines Tank | -9/Exiles Skirmisher | -8/Mines Tank | -8/Materials Tank | -7/Factory Scavenger-Gunner | -7/Lower Caves Mutant | -7/Lower Caves Mutant | -7/Zion Scavenger-Gunner | -6/Proximity Caves Tank | -6/Factory Scavenger-Tank | -6/Extension Scavenger-Tank | -6/Cetus Scavenger-Tank | -6/Archives Scavenger-Tank | -6/Hub_04(d) Scavenger-Tank | -5/Factory Scavenger-Mutant | -4/Factory Scavenger-Gunner | -4/Upper Caves Resources | -11 -10 -10 -9 -9 -9 -8 -8 -7 -7 -7 -7 -6 -6 -6 -6 -6 -6 -5 -4 -4 ----------- Run | Scr Mat Min Mat Min Exi Min Mat Fac Low Low Zio Pro Fac Ext Cet Arc Hub Fac Fac Upp Matter Collected 5086 | 200 570 68 229 11 . . . 469 224 158 77 244 228 852 40 68 17 1077 233 321 Remotely 518 | . 145 68 . . . . . 305 . . . . . . . . . . . . Salvage Created 5452 | . 746 64 437 20 . . . 619 38 57 . 277 245 658 59 153 . 1326 509 244 Parts 301 | . 38 8 27 1 . . . 35 4 3 . 18 19 32 7 5 . 66 26 12 Haulers Intercepted 4 | . 1 . . . . . . . . . . . . 1 . . . 2 . . Recyclers Shooed 7 | . 2 1 . . . . . . . . . . . . . . 1 1 2 . Parts Field Recycled . | . . . . . . . . . . . . . . . . . . . . . Retrieved Matter . | . . . . . . . . . . . . . . . . . . . . . Parts Self-Destructed 44 | . . . . . . . . . 9 7 . 15 . . . . . . . 13 Prevented 7 | . . . . . . . . . 5 1 . . . . . . . . . 1 Kills | -11 -10 -10 -9 -9 -9 -8 -8 -7 -7 -7 -7 -6 -6 -6 -6 -6 -6 -5 -4 -4 ------- Run | Scr Mat Min Mat Min Exi Min Mat Fac Low Low Zio Pro Fac Ext Cet Arc Hub Fac Fac Upp Combat Hostiles Destroyed 113 | . 14 5 9 1 . . . 13 2 3 . 10 7 15 1 2 . 18 8 5 Melee 6 | . . . . . . . . . . . . . . . . . . . 3 3 Guns 82 | . 11 3 9 1 . . . 13 2 3 . 10 2 11 . 1 . 13 3 . Cannons 23 | . 3 2 . . . . . . . . . . 5 4 1 1 . 5 . 2 AOE 1 | . . . . . . . . . . . . . . . . . . . 1 . Classes Destroyed 15 | . 5 . 3 . . . . 1 . . . . 1 1 1 . . 2 . 1 Worker 2 | . . . . . . . . . . . . . . . . . . 2 . . Builder 8 | . 1 . . . . . . 1 . . . . 1 . . . . 4 1 . Hauler 4 | . 1 . . . . . . . . . . . . 1 . . . 2 . . Recycler 3 | . 2 . . . . . . . . . . . . . . . . 1 . . Watcher 1 | . . . 1 . . . . . . . . . . . . . . . . . Swarmer 41 | . 3 5 . 1 . . . 4 2 3 . 8 3 6 . . . 3 . 3 Grunt 37 | . 11 . 5 . . . . 4 . . . 1 2 3 . . . 7 4 . Brawler 3 | . . . 1 . . . . 2 . . . . . . . . . . . . Duelist 1 | . . . . . . . . . . . . . 1 . . . . . . . Sentry 16 | . . . 3 . . . . 2 . . . 1 1 4 . 2 . 2 . 1 Hunter 8 | . . . . . . . . . . . . . . . 1 . . 5 2 . Programmer 4 | . . . . . . . . 1 . . . . . 1 . . . . 2 . Heavy 1 | . . . . . . . . . . . . . . . . . . 1 . . Behemoth 1 | . . . . . . . . . . . . . . 1 . . . . . . Mutant 1 | . . . . . . . . . . . . . . . . . . . . 1 Best Kill Streak 10 | . 6 3 5 1 . . . 4 2 3 . 4 3 3 1 2 . 10 3 3 Combat Bots Only 6 | . 4 3 5 1 . . . 4 2 3 . 4 3 3 1 2 . 6 2 3 Max Kills in Single Turn 2 | . 1 2 1 1 . . . 1 1 1 . 2 1 1 1 1 . 2 1 1 Gunslinging 1 | . . . . . . . . . . . . 1 . . . . . . . . Exploded 1 | . . . . . . . . . . . . . . . . . . . 1 . Melee 1 | . . . . . . . . . . . . . . . . . . . 1 1 Uniques/NPCs Destroyed . | . . . . . . . . . . . . . . . . . . . . . Combat | -11 -10 -10 -9 -9 -9 -8 -8 -7 -7 -7 -7 -6 -6 -6 -6 -6 -6 -5 -4 -4 -------- Run | Scr Mat Min Mat Min Exi Min Mat Fac Low Low Zio Pro Fac Ext Cet Arc Hub Fac Fac Upp Damage Taken 15765 | . 676 96 397 . . . 11 904 179 823 . 488 353 3470 81 123 48 2849 3825 1442 Core 2250 | . 84 23 66 . . . . 46 30 41 . 32 26 558 27 . . 153 806 358 Absorbed by Shields 710 | . . . . . . . . . . . . . . 9 23 . . 483 195 . Reduced by Siege Mode 359 | . . . . . . . . . . . . . . . . . . 315 44 . Core Remaining (%) 75 | 100 . 57 . . . 83 100 . . . . 78 . . . . 28 84 . . Volleys Fired 328 | . 68 12 25 2 . . . 33 3 16 . 15 14 57 1 3 2 41 27 9 Largest 4 | . 2 2 4 4 . . . 4 4 4 . 4 4 4 4 4 4 4 2 3 Hottest 167 | . 59 55 89 89 . . . 97 97 97 . 117 137 167 147 155 155 158 125 135 Shots Fired 935 | . 129 24 86 8 . . . 133 11 49 . 54 51 154 5 12 8 152 37 22 Gun 823 | . 115 22 86 8 . . . 133 11 49 . 54 42 120 4 9 6 111 37 16 Cannon 111 | . 14 2 . . . . . . . . . . 9 34 1 3 2 41 . 5 Launcher . | . . . . . . . . . . . . . . . . . . . . . Special 1 | . . . . . . . . . . . . . . . . . . . . 1 Kinetic 928 | . 129 24 86 8 . . . 133 11 49 . 54 51 154 5 12 8 152 31 21 Thermal 1 | . . . . . . . . . . . . . . . . . . . . 1 Explosive . | . . . . . . . . . . . . . . . . . . . . . Electromagnetic 6 | . . . . . . . . . . . . . . . . . . . 6 . Robot Hit Streak 20 | . 9 5 20 3 . . . 12 10 12 . 5 9 20 1 10 11 14 8 8 Robot Miss Streak 8 | . 5 3 2 2 . . . 4 4 7 . 7 7 4 8 1 1 4 2 6 Penetration Max 2 | . . . . . . . . . . . . . . . . . . 2 1 . Secondary Targets 13 | . 2 . 3 . . . . 2 1 1 . 2 . 2 . . . . . . Max Gunslinging Chain 1 | . 1 . 1 . . . . 1 1 1 . 1 . 1 . . . . . . Shots Hit Robots 673 | . 77 15 66 3 . . . 87 5 44 . 32 36 115 1 10 5 98 62 17 Core Hits 317 | . 34 6 22 3 . . . 40 4 13 . 27 25 67 1 3 1 44 21 6 Critical Kills 16 | . . . 1 . . . . . . . . . . 1 1 1 . 9 1 2 Critical Parts Destroyed 22 | . . . 2 . . . . 1 . . . . . 1 . . 1 14 1 2 Critical Strikes 44 | . . 1 3 . . . . 1 . . . . . 4 1 2 1 23 3 5 Destroy 39 | . . . 3 . . . . 1 . . . . . 2 1 2 1 23 2 4 Blast 3 | . . 1 . . . . . . . . . . . 2 . . . . . . Sever 2 | . . . . . . . . . . . . . . . . . . . 1 1 Melee Attacks 78 | . . . . . . . . 1 1 12 1 . 6 . . . . 3 41 13 Impact 14 | . . . . . . . . 1 1 . . . . . . . . . 12 . Slashing 52 | . . . . . . . . . . . 1 . 6 . . . . 3 29 13 Piercing 12 | . . . . . . . . . . 12 . . . . . . . . . . Sneak Attacks 4 | . . . . . . . . . . 4 . . . . . . . . . . Combat Hostiles 4 | . . . . . . . . . . 4 . . . . . . . . . . Follow-up Attacks 12 | . . . . . . . . . . . . . . . . . . . 9 3 Damage Inflicted 13690 | . 912 140 740 33 . . 22 1289 89 535 . 587 889 2346 41 245 174 3058 2174 416 Guns 9960 | . 747 103 740 33 . . . 1289 89 504 . 587 563 1685 16 193 146 2485 663 117 Cannons 1846 | . 156 32 . . . . . . . . . . 241 661 25 52 28 548 . 103 Explosions 376 | . . . . . . . . . . . . . 85 . . . . . 291 . Melee 1447 | . . . . . . . . . . 31 . . . . . . . . 1220 196 Ramming 61 | . 9 5 . . . . 22 . . . . . . . . . . 25 . . Kinetic 11706 | . 903 135 740 33 . . . 1289 89 504 . 587 804 2346 41 245 174 3033 563 220 Thermal 291 | . . . . . . . . . . . . . . . . . . . 291 . Explosive 85 | . . . . . . . . . . . . . 85 . . . . . . . Electromagnetic 100 | . . . . . . . . . . . . . . . . . . . 100 . Impact 278 | . . . . . . . . . . . . . . . . . . . 278 . Slashing 1138 | . . . . . . . . . . . . . . . . . . . 942 196 Piercing 31 | . . . . . . . . . . 31 . . . . . . . . . . Highest Corruption 23 | . . . . . . . . 4 4 4 4 . . . 8 8 14 . 15 23 Average Corruption 9 | . . . . . . . . 3 4 4 4 . . . 8 8 9 . 10 21 Corruption Purged . | . . . . . . . . . . . . . . . . . . . . . Corruption Blocked . | . . . . . . . . . . . . . . . . . . . . . Effects 134 | . . . . . . . . 16 5 10 2 . . . 11 18 13 . 13 46 Message Errors 26 | . . . . . . . . 1 1 4 1 . . . 2 5 1 . 1 10 Matter Fused 35 | . . . . . . . . 6 1 3 . . . . 1 5 3 . 3 13 Heat Flow Errors 11 | . . . . . . . . . 1 . 1 . . . . . 3 . 4 2 Energy Discharges 20 | . . . . . . . . 4 2 1 . . . . 2 4 2 . 1 4 Parts Rejected 3 | . . . . . . . . . . . . . . . . . . . 2 1 Data Loss (minor) 19 | . . . . . . . . 2 . . . . . . 2 3 3 . 1 8 Data Loss (major) 6 | . . . . . . . . 1 . . . . . . 2 1 1 . . 1 Misfires 4 | . . . . . . . . 1 . . . . . . 1 . . . 1 1 Alerts 6 | . . . . . . . . 1 . 1 . . . . 1 . . . . 3 Misdirections 2 | . . . . . . . . . . . . . . . . . . . . 2 Weapon Failures 2 | . . . . . . . . . . 1 . . . . . . . . . 1 Overload Shots . | . . . . . . . . . . . . . . . . . . . . . Overflow Damage 142 | . . . . . . . 2 . . . . . 29 . . . . . 85 26 Projectiles . | . . . . . . . . . . . . . . . . . . . . . Explosions 80 | . . . . . . . . . . . . . 29 . . . . . 51 . Melee 62 | . . . . . . . 2 . . . . . . . . . . . 34 26 Knockbacks 10 | . 1 . . . . . . . . . . . 2 2 . . 1 4 . . Impact 1 | . . . . . . . . . . . . . . . . . . 1 . . Kinetic 9 | . 1 . . . . . . . . . . . 2 2 . . 1 3 . . Secondary . | . . . . . . . . . . . . . . . . . . . . . Self-Inflicted Damage 322 | . 4 2 . . . . 11 . . . . . 92 . . . . . 213 . Shots 4 | . . . . . . . . . . . . . 1 . . . . . 3 . Rammed 4 | . 1 1 . . . . 1 . . . . . . . . . . 1 . . Targets Rammed 6 | . 2 1 . . . . 1 . . . . . . . . . . 2 . . Kicked 1 | . 1 . . . . . . . . . . . . . . . . . . . Crushed 1 | . . . . . . . . . . . . . . . . . . 1 . . Highest Temperature 537 | . 20 14 242 27 . . . 219 256 180 94 335 251 211 69 151 177 537 211 152 Average Temperature 103 | . 7 10 96 15 . . . 90 95 78 56 141 92 53 34 80 74 192 58 56 Received Heat Transfer 2671 | . 258 . 174 . . . . 162 . 60 . 81 60 641 . . . 554 645 36 Effects 18 | . . . 2 . . . . . . . . 2 . . . . . 14 . . Shutdowns 3 | . . . . . . . . . . . . . . . . . . 3 . . Energy Bleed 2 | . . . 1 . . . . . . . . . . . . . . 1 . . Interference 3 | . . . 1 . . . . . . . . 2 . . . . . . . . Matter Decay 4 | . . . . . . . . . . . . . . . . . . 4 . . Short Circuit 1 | . . . . . . . . . . . . . . . . . . 1 . . Damage (minor) 2 | . . . . . . . . . . . . . . . . . . 2 . . Damage (major) 3 | . . . . . . . . . . . . . . . . . . 3 . . Siege Activations 5 | . . . . . . . . . . . . . . . . . . 4 1 . Total Turns 141 | . . . . . . . . . . . . . . . . . . 121 20 . Longest Duration 53 | . . . . . . . . . . . . . . . . . . 53 20 . Robots Corrupted . | . . . . . . . . . . . . . . . . . . . . . Combat Hostiles . | . . . . . . . . . . . . . . . . . . . . . Parts Fried . | . . . . . . . . . . . . . . . . . . . . . Impact Corruptions 2 | . . . . . . . 1 . . . . . . . . . . . 1 . Robots Melted . | . . . . . . . . . . . . . . . . . . . . . Combat Hostiles . | . . . . . . . . . . . . . . . . . . . . . Parts Melted 1 | . . . . . . . . . . . . . . 1 . . . . . . Heat Transferred 200 | . . . . . . . . . . . . . . . . . . . 200 . Parts Sabotaged . | . . . . . . . . . . . . . . . . . . . . . Parts Stolen . | . . . . . . . . . . . . . . . . . . . . . Parts Stripped . | . . . . . . . . . . . . . . . . . . . . . Power Chain Reactions 1 | . . . . . . . . . . . . . . . . . . . 1 . Missiles Intercepted . | . . . . . . . . . . . . . . . . . . . . . Alert | -11 -10 -10 -9 -9 -9 -8 -8 -7 -7 -7 -7 -6 -6 -6 -6 -6 -6 -5 -4 -4 ------- Run | Scr Mat Min Mat Min Exi Min Mat Fac Low Low Zio Pro Fac Ext Cet Arc Hub Fac Fac Upp Peak Influence 909 | . 220 232 335 106 . . 35 181 . . . . 152 359 909 466 261 526 267 . Initial 363 | . . 62 90 84 . . . . . . . . . 74 200 363 93 127 238 . Average 142 | . 110 121 169 91 . . 26 83 . . . . 38 74 483 427 192 225 187 . Maximum Alert Level 3 | . 1 1 1 . . . . . . . . . . 1 3 2 1 2 1 . Low Security (%) 76 | . 96 89 64 100 . 100 100 100 . . . . 100 93 9 . 51 55 40 . Level 1 16 | . 3 10 35 . . . . . . . . . . 6 22 25 48 32 59 . Level 2 7 | . . . . . . . . . . . . . . . 62 74 . 12 . . Level 3 . | . . . . . . . . . . . . . . . 5 . . . . . Level 4 . | . . . . . . . . . . . . . . . . . . . . . Level 5 . | . . . . . . . . . . . . . . . . . . . . . High Security . | . . . . . . . . . . . . . . . . . . . . . Max Security . | . . . . . . . . . . . . . . . . . . . . . Squads Dispatched 31 | . 5 . 2 . . . . 3 . . . . 5 2 1 . 1 9 3 . Investigation 7 | . 3 . . . . . . . . . . . . 1 1 . . 1 1 . Extermination 4 | . . . . . . . . 1 . . . . 1 . . . . 1 1 . Reinforcement 14 | . 2 . 2 . . . . 2 . . . . . 1 . . 1 5 1 . Assault . | . . . . . . . . . . . . . . . . . . . . . Garrison 6 | . . . . . . . . . . . . . 4 . . . . 2 . . Intercept . | . . . . . . . . . . . . . . . . . . . . . Searches Triggered . | . . . . . . . . . . . . . . . . . . . . . Construction Impeded 3 | . . . . . . . . 1 . . . . . . . . . 2 . . Haulers Reinforced 2 | . . . . . . . . . . . . . . . . . . 2 . . Active Scanning Responses . | . . . . . . . . . . . . . . . . . . . . . Cargo Convoy Interrupts . | . . . . . . . . . . . . . . . . . . . . . Stealth | -11 -10 -10 -9 -9 -9 -8 -8 -7 -7 -7 -7 -6 -6 -6 -6 -6 -6 -5 -4 -4 --------- Run | Scr Mat Min Mat Min Exi Min Mat Fac Low Low Zio Pro Fac Ext Cet Arc Hub Fac Fac Upp Distress Signals 14 | . 2 . . . . . 1 . . . . . . 3 2 . 1 4 1 . Communications Jammed . | . . . . . . . . . . . . . . . . . . . . . Distress Signals . | . . . . . . . . . . . . . . . . . . . . . Times Spotted 211 | . 24 6 14 2 . . 1 14 4 7 . 10 8 35 20 3 3 33 13 14 Peak Tracking Total 8 | . 4 3 5 1 . . 2 3 4 4 . 4 3 4 5 2 2 8 7 4 Tactical Retreats 16 | . 2 1 . . . . 1 . . 1 . . . 3 . . . 3 . 5 Traps | -11 -10 -10 -9 -9 -9 -8 -8 -7 -7 -7 -7 -6 -6 -6 -6 -6 -6 -5 -4 -4 ------- Run | Scr Mat Min Mat Min Exi Min Mat Fac Low Low Zio Pro Fac Ext Cet Arc Hub Fac Fac Upp Traps Triggered 8 | . 3 . 1 . . . . 1 . . . . 1 1 . . . . 1 . Indirectly . | . . . . . . . . . . . . . . . . . . . . . Trap Hack Attempts . | . . . . . . . . . . . . . . . . . . . . . Triggered . | . . . . . . . . . . . . . . . . . . . . . Disarmed . | . . . . . . . . . . . . . . . . . . . . . Reprogrammed . | . . . . . . . . . . . . . . . . . . . . . Reused . | . . . . . . . . . . . . . . . . . . . . . Traps Extracted . | . . . . . . . . . . . . . . . . . . . . . Installed . | . . . . . . . . . . . . . . . . . . . . . Triggered 2 | . . . . . . . . . 1 1 . . . . . . . . . . Machines | -11 -10 -10 -9 -9 -9 -8 -8 -7 -7 -7 -7 -6 -6 -6 -6 -6 -6 -5 -4 -4 ---------- Run | Scr Mat Min Mat Min Exi Min Mat Fac Low Low Zio Pro Fac Ext Cet Arc Hub Fac Fac Upp Machines Disabled 6 | . . . . . . . . . . . . . 1 . 2 . . . 3 . Max in Single Turn 3 | . . . . . . . . . . . . . 1 . . . . . 3 . Garrison Access 1 | . . . . . . . . . . . . . . . . . . . 1 . Machines Sabotaged . | . . . . . . . . . . . . . . . . . . . . . Garrisons Compromised . | . . . . . . . . . . . . . . . . . . . . . Overloaded Fab Kills . | . . . . . . . . . . . . . . . . . . . . . Hacking | -11 -10 -10 -9 -9 -9 -8 -8 -7 -7 -7 -7 -6 -6 -6 -6 -6 -6 -5 -4 -4 --------- Run | Scr Mat Min Mat Min Exi Min Mat Fac Low Low Zio Pro Fac Ext Cet Arc Hub Fac Fac Upp Machines Accessed 44 | . 4 . 4 . 2 . 1 7 . 1 . . 2 9 3 1 3 3 2 2 Terminals 30 | . 2 . 4 . . . 1 5 . . . . 2 9 3 . 3 1 . . Fabricators 4 | . . . . . . . . 1 . . . . . . . . . 2 1 . Repair Stations . | . . . . . . . . . . . . . . . . . . . . . Recycling Units 3 | . 2 . . . . . . 1 . . . . . . . . . . . . Scanalyzers . | . . . . . . . . . . . . . . . . . . . . . Garrison Access 1 | . . . . . . . . . . . . . . . . . . . 1 . Total Hacks 97 | . 4 . 12 . 2 . 2 8 . 1 . . 2 18 7 23 3 6 2 7 Successful 60 | . 3 . 5 . 2 . 1 4 . 1 . . . 7 1 23 3 2 1 7 Failed 37 | . 1 . 7 . . . 1 4 . . . . 2 11 6 . . 4 1 . Catastrophic 4 | . . . . . . . . . . . . . . 2 1 . . 1 . . Database Lockouts . | . . . . . . . . . . . . . . . . . . . . . Manual 35 | . 4 . 12 . 1 . 2 7 . . . . 1 1 4 . 2 1 . . Terminals 55 | . 2 . 12 . . . 2 6 . . . . 2 18 7 . 3 3 . . Fabricators 5 | . . . . . . . . 1 . . . . . . . . . 3 1 . Repair Stations . | . . . . . . . . . . . . . . . . . . . . . Recycling Units 3 | . 2 . . . . . . 1 . . . . . . . . . . . . Scanalyzers . | . . . . . . . . . . . . . . . . . . . . . Garrison Access 1 | . . . . . . . . . . . . . . . . . . . 1 . Terminal Hacks 46 | . . . 1 . 2 . . 2 . 1 . . . 7 1 23 1 1 . 7 Record 31 | . . . . . 1 . . . . . . . . . 1 23 . . . 6 Open Door 9 | . . . . . . . . . . 1 . . . 7 . . . . . 1 Open DSF 1 | . . . . . . . . . . . . . . . . . . 1 . . Branch Access Points 2 | . . . 1 . . . . 1 . . . . . . . . . . . . Zone Layout 2 | . . . . . . . . 1 . . . . . . . . 1 . . . EX-Prototype ID Bank 1 | . . . . . 1 . . . . . . . . . . . . . . . Fabricator Hacks 1 | . . . . . . . . . . . . . . . . . . 1 . . Build 1 | . . . . . . . . . . . . . . . . . . 1 . . Repair Station Hacks . | . . . . . . . . . . . . . . . . . . . . . Recycling Unit Hacks . | . . . . . . . . . . . . . . . . . . . . . Scanalyzer . | . . . . . . . . . . . . . . . . . . . . . Garrison Access Hacks 1 | . . . . . . . . . . . . . . . . . . . 1 . Seal Access 1 | . . . . . . . . . . . . . . . . . . . 1 . Unauthorized Hacks 12 | . 3 . 4 . . . 1 2 . . . . . . . . 2 . . . Terminals 10 | . 1 . 4 . . . 1 2 . . . . . . . . 2 . . . Botnet 10 | . 1 . 4 . . . 1 2 . . . . . . . . 2 . . . Fabricators . | . . . . . . . . . . . . . . . . . . . . . Repair Stations . | . . . . . . . . . . . . . . . . . . . . . Recycling Units 2 | . 2 . . . . . . . . . . . . . . . . . . . Tunnel 2 | . 2 . . . . . . . . . . . . . . . . . . . Scanalyzers . | . . . . . . . . . . . . . . . . . . . . . Garrison Access . | . . . . . . . . . . . . . . . . . . . . . Data Cores Recovered . | . . . . . . . . . . . . . . . . . . . . . Used . | . . . . . . . . . . . . . . . . . . . . . Hacking Detections 23 | . . . 3 . . . 1 5 . . . . 2 6 4 . . 2 . . Full Trace Events 3 | . . . . . . . . . . . . . . 1 1 . . 1 . . Feedback Events . | . . . . . . . . . . . . . . . . . . . . . Feedback Blocked . | . . . . . . . . . . . . . . . . . . . . . Robot Schematics Acquired 2 | . . . . . . . . . . . 2 . . . . . . . . . Robots Built . | . . . . . . . . . . . . . . . . . . . . . Authchips . | . . . . . . . . . . . . . . . . . . . . . Time . | . . . . . . . . . . . . . . . . . . . . . Total Robot Build Rating . | . . . . . . . . . . . . . . . . . . . . . Part Schematics Acquired 16 | . . . . . . . . . . . 16 . . . . . . . . . Parts Built 2 | . . . . . . . . . . . . . . . . . . 2 . . Authchips . | . . . . . . . . . . . . . . . . . . . . . Time 53 | . . . . . . . . . . . . . . . . . . 53 . . Total Part Build Rating 12 | . . . . . . . . . . . . . . . . . . 12 . . Parts Repaired . | . . . . . . . . . . . . . . . . . . . . . Time . | . . . . . . . . . . . . . . . . . . . . . Parts Recycled . | . . . . . . . . . . . . . . . . . . . . . Recycled Matter . | . . . . . . . . . . . . . . . . . . . . . Retrieved Matter . | . . . . . . . . . . . . . . . . . . . . . Retrieved Components . | . . . . . . . . . . . . . . . . . . . . . Parts Scanalyzed . | . . . . . . . . . . . . . . . . . . . . . Part Schematics Acquired . | . . . . . . . . . . . . . . . . . . . . . Parts Damaged . | . . . . . . . . . . . . . . . . . . . . . Bothacking | -11 -10 -10 -9 -9 -9 -8 -8 -7 -7 -7 -7 -6 -6 -6 -6 -6 -6 -5 -4 -4 ------------ Run | Scr Mat Min Mat Min Exi Min Mat Fac Low Low Zio Pro Fac Ext Cet Arc Hub Fac Fac Upp Used RIF Installer . | . . . . . . . . . . . . . . . . . . . . . Robots Hacked . | . . . . . . . . . . . . . . . . . . . . . Non-combat . | . . . . . . . . . . . . . . . . . . . . . Combat . | . . . . . . . . . . . . . . . . . . . . . Robot Hacks Applied . | . . . . . . . . . . . . . . . . . . . . . Relay Couplers Released . | . . . . . . . . . . . . . . . . . . . . . Fabnet Peak Effective % . | . . . . . . . . . . . . . . . . . . . . . Robots Rewired 17 | . . . . . . . . . . . . . . 17 . . . . . . Allies Hacked . | . . . . . . . . . . . . . . . . . . . . . Hacks Repelled . | . . . . . . . . . . . . . . . . . . . . . Allies | -11 -10 -10 -9 -9 -9 -8 -8 -7 -7 -7 -7 -6 -6 -6 -6 -6 -6 -5 -4 -4 -------- Run | Scr Mat Min Mat Min Exi Min Mat Fac Low Low Zio Pro Fac Ext Cet Arc Hub Fac Fac Upp Total Allies 31 | . . . . 2 . . . . . 1 . . . 28 . . . . . . Largest Group 13 | . . . . 2 2 . . . . 1 . . . 13 13 6 2 2 . . Highest-Rated Group 641 | . . . . 47 47 . . . . 85 . . . 641 641 444 192 192 . . Highest-Rated Ally 159 | . . . . 31 31 . . . . 85 . . . 159 159 159 96 96 . . Total Orders . | . . . . . . . . . . . . . . . . . . . . . Ally Attacks 257 | . . . . 4 . . . . . . . . . 115 109 15 6 8 . . Total Damage 5747 | . . . . 64 . . . . . . . . . 2340 2435 423 276 209 . . Kills 44 | . . . . . . . . . . . . . . 18 18 2 5 1 . . Allies Corrupted . | . . . . . . . . . . . . . . . . . . . . . Allies Melted . | . . . . . . . . . . . . . . . . . . . . . Intel | -11 -10 -10 -9 -9 -9 -8 -8 -7 -7 -7 -7 -6 -6 -6 -6 -6 -6 -5 -4 -4 ------- Run | Scr Mat Min Mat Min Exi Min Mat Fac Low Low Zio Pro Fac Ext Cet Arc Hub Fac Fac Upp Robot Analysis Total . | . . . . . . . . . . . . . . . . . . . . . Derelict Logs Recovered 3 | . . . . . . . . . . 1 . . . . . . . . . 2 Drone Launches . | . . . . . . . . . . . . . . . . . . . . . Drone Recoveries . | . . . . . . . . . . . . . . . . . . . . . Exploration | -11 -10 -10 -9 -9 -9 -8 -8 -7 -7 -7 -7 -6 -6 -6 -6 -6 -6 -5 -4 -4 ------------- Run | Scr Mat Min Mat Min Exi Min Mat Fac Low Low Zio Pro Fac Ext Cet Arc Hub Fac Fac Upp Turns Passed 12517 | . 957 175 691 230 271 6 402 959 267 496 918 425 756 2379 358 466 366 791 677 927 Spaces Moved 6623 | 1 618 128 472 124 225 6 150 488 193 336 701 273 383 1033 153 189 107 257 247 539 Core 66 | . . . . . . . . . . . . . . . . . . . 2 64 Treads 1163 | . . . . . . . . . . . . . . 347 127 189 107 257 136 . Legs 796 | 1 42 . . . . . . . . . . . . 163 26 . . . 109 455 Wheels 4598 | . 576 128 472 124 225 6 150 488 193 336 701 273 383 523 . . . . . 20 Hover . | . . . . . . . . . . . . . . . . . . . . . Flight . | . . . . . . . . . . . . . . . . . . . . . Fastest Speed 50 | 120 90 105 105 120 120 120 120 120 130 130 130 130 110 110 160 240 240 160 120 50 Average Speed 145 | 120 112 105 115 120 120 120 120 132 130 130 130 130 110 185 224 240 240 164 183 151 Slowest Speed 260 | 120 130 105 120 120 120 120 120 180 130 130 130 130 110 250 240 240 240 240 260 190 Overloaded Moves . | . . . . . . . . . . . . . . . . . . . . . Propulsion Burnouts . | . . . . . . . . . . . . . . . . . . . . . Robots Hopped . | . . . . . . . . . . . . . . . . . . . . . Cave-ins Triggered . | . . . . . . . . . . . . . . . . . . . . . Exploration Rate (%) 41 | 2 84 28 47 34 65 7 19 18 39 55 78 49 6 85 62 96 19 8 7 64 Regions Visited 20 Branch Regions 13 Pre-discovered Areas 7 | . 2 . . 1 1 . . . . . 2 . . . . . . . . 1 Known Exits Taken 9 | . . . 1 . . . . 1 . . . . 1 1 1 1 1 1 1 . Unknown Exits Taken 11 | 1 1 1 . 1 1 1 1 . 1 1 1 1 . . . . . . . . Scrap Searched 11 | . . . . . . . . . 3 1 2 3 . . . . . . . 2 Spaces Dug 10 | . . . . . . . . 1 . . . . 6 . . . . 3 . . Terrain Destroyed 139 | . 1 . . . . . . 1 . . . . 43 10 . 4 . 37 41 2 Melee 10 | . . . . . . . . 1 . . . . 6 . . . . 3 . . Projectile 53 | . 1 . . . . . . . . . . . . 10 . 4 . 33 3 2 AOE 75 | . . . . . . . . . . . . . 37 . . . . . 38 . Terrain Rammed . | . . . . . . . . . . . . . . . . . . . . . Walls Destroyed . | . . . . . . . . . . . . . . . . . . . . . Machines Disabled . | . . . . . . . . . . . . . . . . . . . . . Actions | -11 -10 -10 -9 -9 -9 -8 -8 -7 -7 -7 -7 -6 -6 -6 -6 -6 -6 -5 -4 -4 --------- Run | Scr Mat Min Mat Min Exi Min Mat Fac Low Low Zio Pro Fac Ext Cet Arc Hub Fac Fac Upp Total 8770 | . 761 149 569 201 226 5 373 733 202 375 705 318 682 1390 169 196 213 520 372 611 Wait 1272 | . 33 5 61 76 . . 213 163 1 6 . 23 266 78 . . 102 182 41 22 Move 6603 | . 617 127 471 123 224 5 149 487 192 335 700 272 382 1032 152 188 106 256 246 539 Hop . | . . . . . . . . . . . . . . . . . . . . . Pick Up 82 | . 20 . 3 . 1 . 5 15 1 2 . 3 2 6 3 . 1 8 4 8 Fast Attach 64 | . 4 1 2 . . . . 3 . 1 2 1 3 11 4 1 . 6 11 14 Attach 56 | . 4 . 2 . . . 2 6 1 2 1 1 2 13 . . 1 6 11 4 Detach 7 | . . . . . . . . 1 . . . . 1 . 2 . . 2 . 1 Swap 45 | . 8 1 2 . . . . 8 2 1 1 1 4 6 1 2 . 6 . 2 Drop 54 | . 5 2 3 . 1 . 3 16 1 . . 2 2 . 6 2 1 8 . 2 Fire 328 | . 68 12 25 2 . . . 33 3 16 . 15 14 57 1 3 2 41 27 9 Melee 66 | . . . . . . . . 1 1 12 1 . 6 . . . . 3 32 10 Ram 3 | . 1 1 . . . . 1 . . . . . . . . . . . . . Kick 1 | . 1 . . . . . . . . . . . . . . . . . . . Crush 2 | . . . . . . . . . . . . . . . . . . 2 . . Escape Stasis 10 | . . . . . . . . . . . . . . 10 . . . . . . Rewire 177 | . . . . . . . . . . . . . . 177 . . . . . . Trap . | . . . . . . . . . . . . . . . . . . . . . Miscellaneous . | . . . . . . . . . . . . . . . . . . . . . Route ------- -11/Scrapyard -10/Materials (discovered 4 exits: *Mat x3 / [*Min]) -10/Mines -9/Materials (discovered 3 exits: *Mat / *Min x2) -9/Mines -9/Exiles -8/Mines -8/Materials -7/Factory (discovered 3 exits: *Fac / *Low x2) -7/Lower Caves -7/Lower Caves -7/Zion -6/Proximity Caves -6/Factory -6/Extension (discovered 2 exits: *Fac / *Cet) -6/Cetus -6/Archives (discovered 3 exits: *Fac / *Hub x2) -6/Hub_04(d) -5/Factory -4/Factory -4/Upper Caves History --------- Turn | Location | Event 1 | -11/Scrapyard | Discovered new exit (range 0) 1 | -11/Scrapyard | Entered Materials 318 | -10/Materials | Build established: Mutant 367 | -10/Materials | Discovered new exit (range 7) 457 | -10/Materials | Discovered new exit (range 15) 618 | -10/Materials | Discovered new exit (range 11) 805 | -10/Materials | Lost 5 parts (1p2n2w) 858 | -10/Materials | Discovered new exit (range 15) 958 | -10/Materials | Entered Mines 1126 | -10/Mines | Discovered new exit (range 8) 1133 | -10/Mines | Entered Materials 1133 | -9/Materials | Evolved 2 slots: Weapon x2 1260 | -9/Materials | Identified exit to Mines 1622 | -9/Materials | Build established: Tank 1762 | -9/Materials | Discovered new exit (range 10) 1824 | -9/Materials | Entered Mines 1827 | -9/Mines | Assembled infested the area 1873 | -9/Mines | Met 8R-AWN 2027 | -9/Mines | Discovered new exit (range 5) 2054 | -9/Mines | Entered Exiles 2054 | -9/Exiles | Accompanied by 2 allies 2084 | -9/Exiles | Led the pair of lost Derelicts to a safe place 2084 | -9/Exiles | Welcomed by 8R-AWN 2104 | -9/Exiles | Met EX-HEX 2141 | -9/Exiles | Met EX-BIN 2156 | -9/Exiles | Aligned with FarCom system 2158 | -9/Exiles | Given EX-Vault access code 2186 | -9/Exiles | Opened EX-Vault 2199 | -9/Exiles | Found Cloak of Protection 2224 | -9/Exiles | Warned to stay clear of 0b10 Research branches 2259 | -9/Exiles | Met EX-DEC 2279 | -9/Exiles | Learned location of Zion (-7) 2315 | -9/Exiles | Discovered new exit (range 10) 2325 | -9/Exiles | Left Exiles lab with Cloak of Protection 2325 | -9/Exiles | Entered Mines 2325 | -8/Mines | Discovered new exit (range 6) 2331 | -8/Mines | Entered Materials 2331 | -8/Materials | Evolved 2 slots: Utility x2 2660 | -8/Materials | Discovered new exit (range 15) 2733 | -8/Materials | Entered Factory 2733 | -7/Factory | Evolved 2 slots: Utility x2 3135 | -7/Factory | Discovered new exit (range 5) 3236 | -7/Factory | Identified exit to Lower Caves 3497 | -7/Factory | Build established: Scavenger-Gunner 3692 | -7/Factory | Entered Lower Caves 3769 | -7/Lower Caves | Encountered a Warlord checkpoint 3940 | -7/Lower Caves | Discovered new exit (range 15) 3959 | -7/Lower Caves | Entered another Lower Caves area 4001 | -7/Lower Caves | Encountered a Warlord checkpoint 4132 | -7/Lower Caves | Spotted B-75 Beast 4166 | -7/Lower Caves | Learned location of 1 exit from Factory 4421 | -7/Lower Caves | Discovered new exit (range 16) 4455 | -7/Lower Caves | Entered Zion 4549 | -7/Zion | Given A8's code to call for help 4585 | -7/Zion | Build established: Mutant 4596 | -7/Zion | Discovered new exit (range 12) 4626 | -7/Zion | System corruption cleaned by Quarantine Array 4887 | -7/Zion | Learned location of Armory (-3) 4901 | -7/Zion | Learned Factory emergency access door positions 4907 | -7/Zion | Learned location of Warlord (-5) 5373 | -7/Zion | Entered Proximity Caves 5488 | -6/Proximity Caves | Lost 3 parts (1p1u1w) 5675 | -6/Proximity Caves | Attracted the attention of an 0b10 checkpoint 5779 | -6/Proximity Caves | Discovered new exit (range 16) 5798 | -6/Proximity Caves | Entered Factory 5798 | -6/Factory | Evolved 2 slots: Propulsion x1, Utility x1 5799 | -6/Factory | Identified exit to Extension 5923 | -6/Factory | Garrison activated, responded to threat 6261 | -6/Factory | Garrison activated, responded to threat 6464 | -6/Factory | Build established: Tank 6554 | -6/Factory | Entered Extension 6612 | -6/Extension | Rescued a captive Derelict 6912 | -6/Extension | Rescued a captive Derelict 6945 | -6/Extension | Rescued a captive Derelict 6946 | -6/Extension | Rescued a captive Derelict 6990 | -6/Extension | Build established: Scavenger-Tank 7036 | -6/Extension | Rescued a captive Derelict 7658 | -6/Extension | Spotted B-75 Beast 7704 | -6/Extension | Disrupted transfer network 7709 | -6/Extension | Destroyed B-75 Beast 7712 | -6/Extension | Spotted B-75 Beast 7760 | -6/Extension | Lost 7 parts (1p1n2u3w) 7896 | -6/Extension | Lost 4 parts (2n1u1w) 8073 | -6/Extension | Core integrity fell below 50% 8426 | -6/Extension | Rescued a captive Derelict 8428 | -6/Extension | Rescued a captive Derelict 8602 | -6/Extension | Lost 3 parts (1n2w) 8780 | -6/Extension | Rescued A7 8801 | -6/Extension | Rescued a captive Derelict 8825 | -6/Extension | Enhanced Grunt warped into view, answering call for help 8825 | -6/Extension | Enhanced Grunt warped into view, answering call for help 8883 | -6/Extension | Discovered new exit (range 10) 8885 | -6/Extension | Discovered new exit (range 6) 8917 | -6/Extension | Identified exit to Cetus 8923 | -6/Extension | Identified exit to Factory 8933 | -6/Extension | Build established: Commander-Skirmisher 8933 | -6/Extension | Entered Cetus 8933 | -6/Cetus | Accompanied by 13 allies (A7) 8938 | -6/Cetus | Acquired a Cetus Manufacturing Module code from A7 8957 | -6/Cetus | Spotted Cetus Guard 8957 | -6/Cetus | Spotted Cetus Guard 8960 | -6/Cetus | Spotted Cetus Guard 8961 | -6/Cetus | Spotted Cetus Guard 8968 | -6/Cetus | Allies destroyed Cetus Guard 8977 | -6/Cetus | Allies destroyed Cetus Guard 8978 | -6/Cetus | Allies destroyed Cetus Guard 8980 | -6/Cetus | Allies destroyed Cetus Guard 9050 | -6/Cetus | Cetus Manufacturing Module disabled 9157 | -6/Cetus | Failed to start Cetus Manufacturing Module 9212 | -6/Cetus | Discovered new exit (range 16) 9246 | -6/Cetus | Identified exit to Archives 9278 | -6/Cetus | Build established: Scavenger-Tank 9291 | -6/Cetus | Entered Archives 9291 | -6/Archives | Accompanied by 6 allies (A7) 9370 | -6/Archives | Unable to access archive contents 9397 | -6/Archives | Unable to access archive contents 9421 | -6/Archives | Unable to access archive contents 9429 | -6/Archives | Discovered exit to Factory (range 15) 9449 | -6/Archives | Discovered new exit (range 16) 9463 | -6/Archives | Unable to access archive contents 9473 | -6/Archives | Discovered new exit (range 13) 9499 | -6/Archives | Identified exit to Hub_04(d) 9757 | -6/Archives | Entered Hub_04(d) 9757 | -6/Hub_04(d) | Accompanied by 2 allies 9981 | -6/Hub_04(d) | Discovered exit to Factory (range 14) 10021 | -6/Hub_04(d) | System corruption reached 10% 10123 | -6/Hub_04(d) | Entered Factory 10123 | -5/Factory | Accompanied by 2 allies 10123 | -5/Factory | Evolved 2 slots: Propulsion x1, Utility x1 10205 | -5/Factory | Fabricated Adv. Shield Generator (x2) 10785 | -5/Factory | Garrison activated, responded to threat 10858 | -5/Factory | Discovered new exit (range 16) 10868 | -5/Factory | Lost 4 parts (1n1u2w) 10912 | -5/Factory | Identified exit to Factory 10914 | -5/Factory | Entered another Factory area 10914 | -4/Factory | Evolved 2 slots: Utility x2 10942 | -4/Factory | Lost 4 parts (1p3w) 11188 | -4/Factory | Build established: Scavenger-Mutant 11282 | -4/Factory | Core integrity fell below 50% 11300 | -4/Factory | Lost 14 parts (1p2n7u4w) 11338 | -4/Factory | Discovered new exit (range 13) 11352 | -4/Factory | System corruption reached 10% 11397 | -4/Factory | Lost 9 parts (3n3u3w) 11475 | -4/Factory | Identified exit to Upper Caves 11591 | -4/Factory | Entered Upper Caves 11631 | -4/Upper Caves | Learned Factory emergency access door positions 11631 | -4/Upper Caves | Learned Armory security intel 11631 | -4/Upper Caves | Learned Factory terminal intel 11631 | -4/Upper Caves | Learned Extension garrison access intel 11631 | -4/Upper Caves | Learned Armory garrison access intel 11637 | -4/Upper Caves | Lost 3 parts (1n2w) 11771 | -4/Upper Caves | P-70 Sage assimilated allied O8-ZQ2(S) 11784 | -4/Upper Caves | Core integrity fell below 20% 11993 | -4/Upper Caves | Lost 5 parts (2n3w) 12009 | -4/Upper Caves | Attracted the attention of an 0b10 checkpoint 12254 | -4/Upper Caves | Build established: Scavenger-Gunner 12518 | -4/Upper Caves | Destroyed by S-27 Virus with Autogun Last Messages --------------- 12139_ Acquired 10 matter. 12151_ System corrupted: Matter fused (-6). 12155_ Acquired derelict log, extracted data. Data stored: Testing entrances (x1). 12170_ System corrupted: FCS attempts to trigger Autogun. 12170_ System corrupted: Autogun misfires. 12188_ |DTQ/VOHKF5JAPJK|MNA9K5UPWYPZQ8%GC2 12204_ System corrupted: Matter fused (-6). 12223_ System corrupted: Substantial component data lost. 12239_ J89BMT5BCE3AHU7 G:Z5%6==8L1FD&0NT: 12263_ System corrupted: Energy discharge (-117). 12278_ FIAOF=QQ M,UXQPATM>P|HNJHCP:ALNCF7LI9Z<, 12295_ System corrupted: Matter fused (-6). 12339_ System corrupted: IFF burst signal emitted. 12378_ System corrupted: Matter fused (-8). 12397_ System corrupted: Matter fused (-9). 12436_ System corrupted: Matter fused (-6). 12457_ System corrupted: Heat flow error (+150). 12501_ System corrupted: Matter fused (-6). 12516_ System corrupted: IFF burst signal emitted. Map ----- +----------------------------------------------------+ | ???????????????????????????????????????? #??## | | ???????????????????????????????????????? #??# | | ????????????????????????????????????????# #??# | | ????????????????????????????????????????# #?## | | ????????????????????????????????????????# ### | | ????????????????????????????????????????# ## | | ???????????????????????????????###??????# | | ???????????????????????????##### ##????## | | ??????????????????????????## #?#### # | | ??????????????????????????# ### ## | | ??????????????????????????#### ###? | | ?????????????????????????????## ##??? | | ?????????????????????????????## #???? | | ????????????????????????????## ## ##???? | | ???????????????????????????## ### #????? | | ??????????????????????????## ##?## #???? | | ??????????????????????????# #####???## #???? | | ??????????????????????????# ##?###????# #???? | | ??????????????????????????# ### #????# #???? | | ??????????????????????????# #???? ##???? | | ??????????????????????????## #???? ###????? | | ???????????????????????????## ###???? ???????? | | ??????????????# #?????####?### ##?????? ???????? | | ??????????????# #### ##### #???????????????? | | ??????????????# ## ###?????????????? | | ??????????????# @ #?????????????? | | ???????????# !s ###### #?????????????? | | ?????????????????????????# ??????? | | ?????????????????????????# ### ????? | | ?????????????????????????## ##??# #### #?????? | | ??????????????????????????###????###???? ?????? | | ?????????????????????????????????????????? ?????? | | ??????????????????????????????????????????? ?????? | | ?????????????????????????????????????????????????? | | ?????????????????????????????????????????????????? | | ?????????????????????????????????????????????????? | | ?????????????????????????????????????????????????? | | ?????????????????????????????????????????????????? | | ?????????????????????????????????????????????????? | | ?????????????????????????????????????????????????? | | ?????????????????????????????????????????????????? | | ?????????????????????????????????????????????????? | | ?????????????????????????????????????????????????? | | ?????????????????????????????????????????????????? | | ?????????????????????????????????????????????????? | | ?????????????????????????????????????????????????? | | ?????????????????????????????????????????????????? | | ?????????????????????????????????????????????????? | | ?????????????????????????????????????????????????? | | ?????????????????????????????????????????????????? | +----------------------------------------------------+ Best States ------------- Heat Dissipation 62 Energy Generation 31 Energy Capacity 725 Matter Stores 500 Matter Capacity 500 Sight Range 16 Terrain Scan Density 10 Cloak Strength 5 Power Amplification 30 Additional Mass Support 9 Armor Coverage 1350 Resistance: KI 20 Weapon Cycling 15 Evasion (%) 55 Targeting Accuracy 5 Melee Accuracy 6 Target Analysis 6 Recoil Reduction 4 Kinecelleration 30 Salvage Targeting 3 Item Schematics ----------------- Imp. Actuator Array | -7/Zion | Archive Mak. Hacking Suite | -7/Zion | Archive Mak. Flight Unit | -7/Zion | Archive Force Field | -7/Zion | Archive Neutrino Core | -7/Zion | Archive Kinecellerator | -7/Zion | Archive Imp. Target Analyzer | -7/Zion | Archive Med. Treads | -7/Zion | Archive Power Sword | -7/Zion | Archive Imp. Salvage Targeting Computer | -7/Zion | Archive Power Amplifier | -7/Zion | Archive Hvy. Riot Gun | -7/Zion | Archive Imp. Reaction Control System | -7/Zion | Archive Mak. Axe | -7/Zion | Archive Adv. Trap Extractor | -7/Zion | Archive Imp. KE Penetrator | -7/Zion | Archive Robot Schematics ------------------ R-06 Scavenger | -7/Zion | Archive T-07 Excavator | -7/Zion | Archive Fabricated ------------ Adv. Shield Generator | x2 | -5/Factory | Preloaded Alien Tech Used ----------------- None Achievements -------------- Error 47 Prison Break Project G-00 Challenges ------------ None Game ------ Seed FocalBurstCycler Manual? 0 Play Time 01:33:31 Cumulative 76.1 hours Start 2022.07.10 @ 11:00:25 End 2022.07.10 @ 12:36:15 Sessions 1 Manual Loads 0 Difficulty Rogue Special Mode None Game No. 112 Rogue 112 Adventurer 0 Explorer 0 Win Type - Total 1 Types 1/0/0/0/0/0/0/0/0 Lore% 40 Gallery% 44 Achievement% 37 Wizard Run 0 Options --------- ASCII 0 Keyboard 1 Movement Vi Keybinds 1 Fullscreen 1 Font 24/Smallcaps Map View 76x50 Tactical HUD 1 Map Filters NONE Filters NONE Steam 1 RUN: e48b7477-b91b-4be8-a188-661cbf1d81b7